fUST/lending_fUST_20260311
["ID","MTS","AMOUNT","RATE_DAILY","PERIOD"]
[408205163,1773233438372,-150.0,6.709e-05,2]
[408205165,1773233438381,-893.601,6.752e-05,2]
[408205167,1773233438390,-3062.7036502,8.414e-05,2]
[408205169,1773233438399,-19205.99763681,8.414e-05,2]
[408205171,1773233438411,-1500.0,8.414e-05,2]
[408205174,1773233438422,-18391.71520249,8.414e-05,2]
[408205176,1773233438441,-308.3405592,8.554e-05,2]
[408205179,1773233438451,-4392.81783922,9.114e-05,2]
[408205181,1773233438460,-362.0215027,9.206e-05,2]
[408205183,1773233438469,-372.88284645,9.47e-05,2]
[408205185,1773233438479,-1529.34699502,9.47e-05,2]
[408205187,1773233438488,-683.3815559,9.489e-05,2]
[408205189,1773233438497,-8723.8789272,9.489e-05,2]
[408205230,1773233438868,-195.26789602,9.543e-05,2]
[408205237,1773233438921,-304.73210398,9.543e-05,2]
[408205239,1773233438931,-500.0,9.543e-05,2]
[408205241,1773233438940,-500.36350121,9.543e-05,2]
[408205243,1773233438949,-695.29323906,9.565e-05,2]
[408205245,1773233438960,-4578.18440836,9.565e-05,2]
[408205247,1773233438971,-2687.49513349,9.565e-05,2]
[408205249,1773233438982,-2091.05551433,9.565e-05,2]
[408205251,1773233438993,-2559.03412727,9.565e-05,2]
[408205293,1773233440540,-301.4478437,6.871e-05,2]
[408205295,1773233440550,-341.34535243,8.871e-05,2]
[408205297,1773233440559,-20680.25746345,9.565e-05,2]
[408205299,1773233440570,-4738.67868723,9.565e-05,2]
[408205301,1773233440581,-808.4544273,9.565e-05,2]
[408205305,1773233440608,-1177.93474205,9.565e-05,2]
[408205444,1773233445725,-8008.41106366,9.565e-05,2]
[408205445,1773233445738,-1357.39668019,9.565e-05,2]
[408205446,1773233445749,-6227.24464142,9.565e-05,2]
[408205454,1773233446193,-28024.64066622,9.565e-05,2]
[408205455,1773233446204,-5319.3045271,9.565e-05,2]
[408205456,1773233446306,-7929.19737577,9.565e-05,2]
[408205571,1773234084108,-3477.80255215,8.276e-05,2]
[408205572,1773234084121,-1522.19744785,8.276e-05,2]
[408205573,1773234084130,-205.43966455,8.318e-05,2]
[408205574,1773234084140,-236.0,8.359e-05,2]
[408205575,1773234084149,-500.0,8.36e-05,2]
[408205576,1773234084159,-500.0,8.36e-05,2]
[408205577,1773234084168,-500.0,8.36e-05,2]
[408205578,1773234084178,-500.0,8.36e-05,2]
[408205579,1773234084188,-500.0,8.36e-05,2]
[408205580,1773234084197,-500.0,8.36e-05,2]
[408205581,1773234084206,-36.3628876,8.36e-05,2]
[408205627,1773234603347,181.63,2e-05,2]
[408205992,1773234646422,-3461.90317999,7.87e-05,2]
[408205993,1773234646434,-1359.36072373,7.87e-05,2]
[408205994,1773234646443,-531.0,7.87e-05,2]
[408205995,1773234646452,-158.78927627,7.949e-05,2]
[408205996,1773234646463,-421.21072373,7.949e-05,2]
[408205997,1773234646473,-5000.0,7.95e-05,2]
[408205998,1773234646485,-201.33087126,8.071e-05,2]
[408205999,1773234646495,-463.6371124,8.36e-05,2]
[408206000,1773234646505,-500.0,8.36e-05,2]
[408206001,1773234646514,-500.0,8.36e-05,2]
[408206002,1773234646525,-1277.87940316,8.43e-05,2]
[408206003,1773234646547,-600.0,8.43e-05,2]
[408206019,1773235203282,181.63,2e-05,2]
[408206080,1773235803489,178.0,2e-05,2]
[408206107,1773235832440,-1739.40169635,6.985e-05,2]
[408206229,1773235838633,-3260.59830365,6.985e-05,2]
[408206230,1773235838643,-562.30788143,7.056e-05,2]
[408206231,1773235838652,-362.69110597,7.056e-05,2]
[408206232,1773235838734,-157.30889403,7.056e-05,2]
[408206233,1773235838744,-209.66551411,7.092e-05,2]
[408206234,1773235838754,-603.6357312,7.305e-05,2]
[408206235,1773235838763,-294.7164882,7.345e-05,2]
[408206236,1773235838772,-160.0,8.35e-05,2]
[408206237,1773235838783,-300.0,8.429e-05,2]
[408206238,1773235838793,-12706.55058601,8.43e-05,2]
[408206239,1773235838802,-2724.58098037,8.493e-05,2]
[408206240,1773235838811,-500.0,8.493e-05,2]
[408206241,1773235838820,-224.32238181,8.493e-05,2]
[408206242,1773235838829,-500.29079759,8.493e-05,2]
[408206243,1773235838839,-500.48869608,8.493e-05,2]
[408206244,1773235838848,-500.0,8.493e-05,2]
[408206245,1773235838858,-500.26713172,8.493e-05,2]
[408206246,1773235838867,-500.0,8.493e-05,2]
[408206247,1773235838881,-551.63906755,8.493e-05,2]
[408206248,1773235838890,-500.51503882,8.493e-05,2]
[408206249,1773235838899,-463.97761665,8.493e-05,2]
[408206250,1773235838909,-500.0,8.493e-05,2]
[408206251,1773235838918,-553.54526994,8.493e-05,2]
[408206252,1773235838927,-500.0,8.493e-05,2]
[408206253,1773235838937,-500.0,8.493e-05,2]
[408206254,1773235838947,-500.0,8.493e-05,2]
[408206255,1773235838956,-255.224,8.493e-05,2]
[408206256,1773235838965,-10000.0,8.511e-05,2]
[408206257,1773235838974,-445.202766,8.831e-05,2]
[408206258,1773235838983,-500.0,8.831e-05,2]
[408206259,1773235838992,-162.380719,8.831e-05,2]
[408206260,1773235839000,-500.0,8.831e-05,2]
[408206261,1773235839009,-500.0,8.831e-05,2]
[408206262,1773235839018,-500.0,8.831e-05,2]
[408206263,1773235839027,-1957.856,8.831e-05,2]
[408206264,1773235839036,-500.0,8.831e-05,2]
[408206265,1773235839045,-500.0,8.831e-05,2]
[408206266,1773235839054,-500.0,8.831e-05,2]
[408206267,1773235839062,-500.0,8.831e-05,2]
[408206268,1773235839071,-500.0,8.831e-05,2]
[408206269,1773235839080,-500.0,8.831e-05,2]
[408206270,1773235839090,-500.0,8.831e-05,2]
[408206271,1773235839100,-500.0,8.831e-05,2]
[408206272,1773235839109,-2150.738,8.831e-05,2]
[408206273,1773235839118,-500.0,8.831e-05,2]
[408206274,1773235839129,-500.0,8.831e-05,2]
[408206275,1773235839138,-500.0,8.831e-05,2]
[408206276,1773235839147,-500.0,8.831e-05,2]
[408206277,1773235839156,-500.0,8.831e-05,2]
[408206278,1773235839166,-537.68450001,8.831e-05,2]
[408206279,1773235839175,-2030.296672,8.886e-05,2]
[408206280,1773235839184,-1719.21573007,8.941e-05,2]
[408206281,1773235839193,-160.0,9e-05,2]
[408206282,1773235839202,-330.37226334,9.017e-05,2]
[408206283,1773235839212,-1000.0,9.041e-05,2]
[408206284,1773235839221,-500.0,9.041e-05,2]
[408206285,1773235839230,-247.40530665,9.092e-05,2]
[408206286,1773235839239,-500.0,9.21e-05,2]
[408206287,1773235839248,-500.0,9.21e-05,2]
[408206288,1773235839258,-500.0,9.21e-05,2]
[408206289,1773235839267,-500.0,9.21e-05,2]
[408206290,1773235839276,-500.0,9.21e-05,2]
[408206291,1773235839285,-500.0,9.21e-05,2]
[408206292,1773235839294,-462.74019495,9.21e-05,2]
[408206293,1773235839303,-151.0,9.292e-05,2]
[408206294,1773235839313,-151.0,9.292e-05,2]
[408206295,1773235839323,-151.0,9.292e-05,2]
[408206296,1773235839332,-2907.8366666,9.297e-05,2]
[408206297,1773235839341,-18841.7548724,9.297e-05,2]
[408206298,1773235839350,-3068.1203624,9.297e-05,2]
[408206299,1773235839359,-1946.5605022,9.297e-05,2]
[408206300,1773235839369,-184.765634,9.297e-05,2]
[408206301,1773235839382,-151.0,9.297e-05,2]
[408206302,1773235839391,-272.91413988,9.297e-05,2]
[408206303,1773235839400,-13702.8561858,9.297e-05,2]
[408206304,1773235839409,-445.202766,9.379e-05,2]
[408206305,1773235839419,-162.380719,9.379e-05,2]
[408206306,1773235839428,-470.24258012,9.4e-05,2]
[408206307,1773235839437,-160.0,9.5e-05,2]
[408206308,1773235839446,-1047.90770574,9.603e-05,2]
[408206309,1773235839455,-2230.92809781,9.756e-05,2]
[408206310,1773235839464,-554.73083502,9.766e-05,2]
[408206311,1773235839473,-800.0,9.812e-05,2]
[408206312,1773235839484,-800.0,9.818e-05,2]
[408206313,1773235839494,-221.48005241,9.908e-05,2]
[408206314,1773235839503,-357.74236222,9.973e-05,2]
[408206315,1773235839511,-151.0,9.973e-05,2]
[408206316,1773235839520,-215961.86526716,0.0001,2]
[408206317,1773235839532,-48424.75305131,0.0001,2]
[408206372,1773235844320,-299.95995515,6.915e-05,2]
[408206374,1773235844329,-21.35262915,9.8e-05,2]
[408206377,1773235844340,-677.25250801,9.8e-05,2]
[408206379,1773235844349,-2195.32431564,9.9e-05,2]
[408206381,1773235844359,-2127.42317635,0.0001,2]
[408206522,1773236006401,153.0,2.8e-07,2]
[408206523,1773236007476,153.0,2.8e-07,2]
[408206524,1773236008544,153.0,2.8e-07,2]
[408206525,1773236009874,153.0,2.8e-07,2]
[408206526,1773236010984,153.0,2.8e-07,2]
[408206527,1773236012072,153.0,2.8e-07,2]
[408206533,1773236198662,-1171.95599821,3.43e-05,2]
[408206534,1773236198684,-5000.0,3.465e-05,2]
[408206535,1773236315980,-5000.0,4.95e-05,2]
[408206536,1773236316002,-206.57725911,4.975e-05,2]
[408206537,1773236316031,-2174.4721553,5e-05,2]
[408206539,1773236324600,-4318.95058559,5.1e-05,2]
[408206543,1773236405544,178.0,2e-05,2]
[408206549,1773236756355,3430.0,0.000102,120]
[408206651,1773237031730,-458.49435571,4.606e-05,2]
[408206653,1773237031739,-261.91378156,4.706e-05,2]
[408206655,1773237031751,-281.12826755,4.706e-05,2]
[408206892,1773237037878,-657.44283054,4.706e-05,2]
[408206894,1773237037887,-206.89171166,4.73e-05,2]
[408206896,1773237037897,-5000.0,4.754e-05,2]
[408206898,1773237037906,-522.48637847,5.1e-05,2]
[408206900,1773237037915,-300.0,5.198e-05,2]
[408206902,1773237037924,-1200.0,5.198e-05,2]
[408206904,1773237037934,-5360.28631205,5.2e-05,2]
[408206906,1773237037943,-5371.97981527,5.3e-05,2]
[408206908,1773237037953,-442.82657911,5.4e-05,2]
[408206910,1773237037965,-5436.30908103,5.4e-05,2]
[408206912,1773237037974,-202.68442953,5.479e-05,2]
[408206914,1773237037984,-300.0,5.718e-05,2]
[408206916,1773237037994,-244.13221976,6.73e-05,2]
[408206918,1773237038003,-639.0,8.014e-05,2]
[408206920,1773237038012,-1393.0,8.014e-05,2]
[408206922,1773237038022,-733.0,8.014e-05,2]
[408206924,1773237038031,-471.45489999,8.2e-05,2]
[408206926,1773237038041,-500.0,8.373e-05,2]
[408206928,1773237038050,-281.37272786,8.73e-05,2]
[408206930,1773237038059,-204.179,8.906e-05,2]
[408206932,1773237038070,-202.88212904,8.921e-05,2]
[408206935,1773237038088,-439.72548328,8.921e-05,2]
[408206936,1773237038097,-369.18,9e-05,2]
[408206938,1773237038107,-500.0,9.116e-05,2]
[408206940,1773237038116,-162.380719,9.148e-05,2]
[408206942,1773237038127,-333.29557159,9.148e-05,2]
[408206944,1773237038137,-500.0,9.148e-05,2]
[408206946,1773237038147,-500.0,9.148e-05,2]
[408206948,1773237038156,-500.0,9.148e-05,2]
[408206950,1773237038165,-500.0,9.148e-05,2]
[408206952,1773237038175,-500.0,9.148e-05,2]
[408206954,1773237038184,-313.17400001,9.148e-05,2]
[408206956,1773237038194,-151.09443976,9.148e-05,2]
[408206958,1773237038202,-500.0,9.148e-05,2]
[408206960,1773237038212,-500.0,9.148e-05,2]
[408206962,1773237038225,-500.0,9.148e-05,2]
[408206964,1773237038236,-500.0,9.148e-05,2]
[408206966,1773237038245,-500.0,9.148e-05,2]
[408206968,1773237038255,-500.0,9.148e-05,2]
[408206970,1773237038265,-500.0,9.148e-05,2]
[408206972,1773237038275,-500.0,9.148e-05,2]
[408206974,1773237038284,-500.0,9.148e-05,2]
[408206976,1773237038295,-2150.738,9.148e-05,2]
[408206977,1773237038305,-167.44052948,9.148e-05,2]
[408206980,1773237038317,-332.55947052,9.148e-05,2]
[408206982,1773237038327,-500.0,9.148e-05,2]
[408206983,1773237038336,-500.0,9.148e-05,2]
[408206985,1773237038345,-500.0,9.148e-05,2]
[408206987,1773237038354,-4359.07253262,9.148e-05,2]
[408206989,1773237038364,-537.6845,9.148e-05,2]
[408206991,1773237038374,-500.0,9.21e-05,2]
[408206993,1773237038383,-364.46610945,9.21e-05,2]
[408206995,1773237038393,-1203.64716794,9.535e-05,2]
[408206997,1773237038405,-5208.28769518,9.535e-05,2]
[408206999,1773237038414,-80.24125425,9.594e-05,2]
[408207001,1773237038426,-3959.48686395,9.594e-05,2]
[408207003,1773237038435,-2063.60660541,9.594e-05,2]
[408207005,1773237038446,-1142.48423248,9.594e-05,2]
[408207075,1773237042860,-3126.9458301,9.594e-05,2]
[408207081,1773237045017,-127.62766612,9.594e-05,2]
[408207091,1773237045964,-20635.49776329,9.594e-05,2]
[408207093,1773237045974,-3395.03672862,9.594e-05,2]
[408207094,1773237046039,-1299.65739218,9.594e-05,2]
[408207095,1773237046048,-400.0,9.69e-05,2]
[408207096,1773237046058,-400.0,9.744e-05,2]
[408207097,1773237046067,-400.0,9.797e-05,2]
[408207098,1773237046076,-400.0,9.851e-05,2]
[408207099,1773237046086,-3395.5256054,9.864e-05,2]
[408207100,1773237046095,-846.45257028,9.9e-05,2]
[408207101,1773237046104,-4860.77197381,9.9e-05,2]
[408207102,1773237046228,-7845.7786122,9.9e-05,2]
[408207103,1773237046238,-400.0,9.905e-05,2]
[408207104,1773237046250,-400.0,9.958e-05,2]
[408207105,1773237046260,-800.0,9.966e-05,2]
[408207106,1773237046270,-500.0,9.973e-05,2]
[408207107,1773237046280,-500.0,9.973e-05,2]
[408207108,1773237046289,-500.65797328,9.973e-05,2]
[408207109,1773237046298,-500.0,9.973e-05,2]
[408207110,1773237046310,-500.0,9.973e-05,2]
[408207111,1773237046320,-500.0,9.973e-05,2]
[408207112,1773237046329,-178.38005511,9.973e-05,2]
[408207131,1773237643483,-4574.51574014,5.8e-05,2]
[408207146,1773238188839,9673.9,2.6e-05,2]
[408207518,1773238243101,-5000.0,5e-05,2]
[408207520,1773238243111,-5000.0,5.298e-05,2]
[408207521,1773238243120,-1425.92641124,5.352e-05,2]
[408207522,1773238243129,-5000.0,5.406e-05,2]
[408207523,1773238243146,-300.0,5.46e-05,2]
[408207524,1773238243158,-1200.0,5.46e-05,2]
[408207525,1773238243167,-207.43873513,5.657e-05,2]
[408207526,1773238243176,-300.0,6.006e-05,2]
[408207527,1773238243186,-755.230463,6.161e-05,2]
[408207541,1773238246512,-849.0481367,6.161e-05,2]
[408207542,1773238246523,-294.7164882,7.629e-05,2]
[408207543,1773238246533,-244.77770746,7.657e-05,2]
[408207544,1773238246543,-7035.73511418,8.887e-05,2]
[408207565,1773239249459,520.5,2.6e-05,2]
[408207585,1773239312685,797.8,0.000102,120]
[408207586,1773239337090,1064.0,2.6e-05,2]
[408207587,1773239350413,832.2,0.000102,120]
[408207597,1773239424310,-1100.0,3.603e-05,2]
[408207867,1773239446110,-459.31644915,3.531e-05,2]
[408207868,1773239446120,-5000.0,3.567e-05,2]
[408207869,1773239446129,-166.86234,3.676e-05,2]
[408207870,1773239446139,-204.75604383,5.514e-05,2]
[408207871,1773239446149,-166.86234,7.352e-05,2]
[408207872,1773239446158,-241.61213172,7.514e-05,2]
[408207873,1773239446167,-603.6357312,7.801e-05,2]
[408207874,1773239446177,-1239.504419,8e-05,2]
[408207875,1773239446186,-1428.2406706,8.5e-05,2]
[408207876,1773239446195,-3477.59758446,8.5e-05,2]
[408207877,1773239446204,-3434.20492618,8.5e-05,2]
[408207878,1773239446214,-482.35057729,8.5e-05,2]
[408207879,1773239446223,-450.90454152,8.5e-05,2]
[408207880,1773239446232,-2724.58098037,8.5e-05,2]
[408207881,1773239446241,-214.388,8.513e-05,2]
[408207882,1773239446250,-1102.5114019,8.595e-05,2]
[408207883,1773239446259,-1281.2629082,8.595e-05,2]
[408207884,1773239446268,-8747.4305056,8.595e-05,2]
[408207885,1773239446278,-1222.7254869,8.595e-05,2]
[408207886,1773239446287,-7845.7786122,8.6e-05,2]
[408207887,1773239446296,-500.51503882,8.663e-05,2]
[408207888,1773239446306,-500.0,8.663e-05,2]
[408207889,1773239446315,-553.54526994,8.663e-05,2]
[408207890,1773239446325,-500.29079759,8.663e-05,2]
[408207891,1773239446334,-500.0,8.663e-05,2]
[408207892,1773239446344,-500.0,8.663e-05,2]
[408207893,1773239446354,-500.0,8.663e-05,2]
[408207894,1773239446363,-500.26713172,8.663e-05,2]
[408207895,1773239446372,-500.25503198,8.663e-05,2]
[408207896,1773239446382,-500.0,8.663e-05,2]
[408207897,1773239446392,-500.0,8.663e-05,2]
[408207898,1773239446401,-500.0,8.663e-05,2]
[408207899,1773239446411,-500.0,8.663e-05,2]
[408207900,1773239446420,-500.0,8.663e-05,2]
[408207901,1773239446429,-500.65797328,8.663e-05,2]
[408207902,1773239446438,-500.0,8.663e-05,2]
[408207903,1773239446447,-500.0,8.663e-05,2]
[408207904,1773239446457,-500.0,8.663e-05,2]
[408207905,1773239446466,-326.56310655,8.663e-05,2]
[408207953,1773240632230,-319.28063853,7.196e-05,2]
[408207956,1773240632248,-2600.0,7.196e-05,2]
[408207958,1773240632267,-2080.71936147,7.196e-05,2]
[408207961,1773240632280,-522.0,7.196e-05,2]
[408207963,1773240632292,-147.28063853,7.269e-05,2]
[408208183,1773240646410,-1246.32820227,7.197e-05,2]
[408208184,1773240646513,-1593.97179407,7.197e-05,2]
[408208185,1773240646527,-911.91340463,7.197e-05,2]
[408208186,1773240646767,-1247.78659903,7.197e-05,2]
[408208187,1773240646781,-48.54804179,7.269e-05,2]
[408208188,1773240646792,-1274.31535918,7.343e-05,2]
[408208198,1773241281461,-157.14,6.508e-05,2]
[408208238,1773241832346,-5000.0,5.945e-05,2]
[408208240,1773241832355,-1451.21344156,6.005e-05,2]
[408208242,1773241832364,-468.57847778,6.066e-05,2]
[408208268,1773241838556,-4531.42152222,6.066e-05,2]
[408208269,1773241838565,-508.0,6.127e-05,2]
[408208270,1773241838575,-176.95243869,6.127e-05,2]
[408208271,1773241838584,-610.85700623,6.127e-05,2]
[408208272,1773241838594,-198.34658117,6.158e-05,2]
[408208273,1773241838604,-716.55484687,6.176e-05,2]
[408208274,1773241838613,-300.0,6.205e-05,2]
[408208275,1773241838623,-1368.83974384,6.206e-05,2]
[408208276,1773241838632,-500.0,6.707e-05,2]
[408208277,1773241838641,-420.0,6.826e-05,2]
[408208278,1773241838655,-8725.68464082,7.343e-05,2]
[408208279,1773241838663,-2021.12464082,7.413e-05,2]
[408208280,1773241838673,-275.77691887,7.563e-05,2]
[408208281,1773241838682,-500.0,7.563e-05,2]
[408208282,1773241838693,-500.0,7.563e-05,2]
[408208283,1773241838703,-500.48869608,7.563e-05,2]
[408208284,1773241838712,-500.0,7.563e-05,2]
[408208285,1773241838723,-500.0,7.563e-05,2]
[408208286,1773241838732,-500.0,7.563e-05,2]
[408208287,1773241838741,-224.32238181,7.563e-05,2]
[408208288,1773241838751,-500.0,7.563e-05,2]
[408208289,1773241838760,-554.8,7.8e-05,2]
[408208290,1773241838769,-2387.3244903,7.825e-05,2]
[408208291,1773241838778,-4864.5321125,7.853e-05,2]
[408208292,1773241838788,-151.0,7.864e-05,2]
[408208293,1773241838797,-1000.0,8.111e-05,2]
[408208294,1773241838807,-1000.0,8.111e-05,2]
[408208295,1773241838816,-234.04896578,8.158e-05,2]
[408208296,1773241838825,-35007.92501408,8.2e-05,2]
[408208297,1773241838842,-3486.12324191,8.2e-05,2]
[408208298,1773241838852,-1359.0,8.2e-05,2]
[408208381,1773241841210,-10911.60000023,8.2e-05,2]
[408208592,1773241846683,-8282.34055108,8.2e-05,2]
[408208593,1773241846695,-19466.99267069,8.207e-05,2]
[408208594,1773241846704,-803.79941305,8.207e-05,2]
[408208595,1773241846714,-166.19405598,8.219e-05,2]
[408208596,1773241846725,-1700.0,8.27e-05,4]
[408208597,1773241846734,-669.0774937,8.47e-05,2]
[408208598,1773241846743,-160.0,8.6e-05,2]
[408208599,1773241846752,-441.52544947,8.619e-05,2]
[408208600,1773242423654,7000.0,0.000102,120]
[408208601,1773242455764,7000.0,0.000102,120]
[408208617,1773243003091,154.94,2e-05,2]
[408208618,1773243003605,154.94,2e-05,2]
[408208619,1773243003916,154.94,2e-05,2]
[408208620,1773243004729,154.94,2e-05,2]
[408208621,1773243004811,154.94,2.1e-05,2]
[408208622,1773243005078,154.94,2.1e-05,2]
[408208623,1773243005441,154.94,2.1e-05,2]
[408208624,1773243005816,154.94,2.1e-05,2]
[408208625,1773243006207,154.94,2.1e-05,2]
[408208626,1773243007202,154.94,2.1e-05,2]
[408208627,1773243007707,154.94,2.2e-05,2]
[408208628,1773243008075,154.94,2.2e-05,2]
[408208629,1773243008441,154.94,2.2e-05,2]
[408208630,1773243008808,154.94,2.2e-05,2]
[408208701,1773243038363,-531.65021416,6.843e-05,2]
[408208702,1773243038375,-863.86840795,6.843e-05,2]
[408208703,1773243038384,-4960.05735128,6.912e-05,2]
[408208704,1773243038395,-300.0,6.981e-05,2]
[408208705,1773243038404,-1200.0,6.981e-05,2]
[408208706,1773243038414,-5000.0,6.982e-05,2]
[408208707,1773243038424,-196.1401142,7.089e-05,2]
[408208708,1773243038433,-10000.0,7.576e-05,2]
[408208709,1773243038442,-2132.04257562,8.619e-05,2]
[408208710,1773243038451,-1085.4238293,8.852e-05,2]
[408208711,1773243038461,-160.0,8.89e-05,2]
[408208712,1773243038473,-5000.0,9e-05,2]
[408208713,1773243038482,-5000.0,9e-05,2]
[408208714,1773243038492,-5000.0,9e-05,2]
[408208715,1773243038502,-5000.0,9e-05,2]
[408208716,1773243038512,-5000.0,9e-05,2]
[408208717,1773243038521,-242.1907928,9.075e-05,2]
[408208718,1773243038530,-231.44533476,9.089e-05,2]
[408208719,1773243038540,-330.37226334,9.143e-05,2]
[408208720,1773243038550,-150.0,9.206e-05,2]
[408208721,1773243038559,-150.0,9.206e-05,2]
[408208722,1773243038569,-150.0,9.206e-05,2]
[408208723,1773243038578,-150.0,9.206e-05,2]
[408208724,1773243038587,-500.0,9.21e-05,2]
[408208725,1773243038596,-364.46610945,9.21e-05,2]
[408208726,1773243038606,-500.0,9.21e-05,2]
[408208727,1773243038615,-500.0,9.21e-05,2]
[408208728,1773243038624,-500.0,9.21e-05,2]
[408208729,1773243038634,-500.0,9.21e-05,2]
[408208730,1773243038643,-500.0,9.21e-05,2]
[408208731,1773243038652,-500.0,9.21e-05,2]
[408208732,1773243038662,-462.74019495,9.21e-05,2]
[408208733,1773243038671,-150.0,9.261e-05,2]
[408208734,1773243038680,-161.88186887,9.261e-05,2]
[408208735,1773243038690,-154.31249282,9.261e-05,2]
[408208736,1773243038699,-150.0,9.261e-05,2]
[408208737,1773243038709,-463.97761665,9.263e-05,2]
[408208738,1773243038719,-500.0,9.263e-05,2]
[408208739,1773243038729,-500.0,9.263e-05,2]
[408208740,1773243038738,-173.43689345,9.263e-05,2]
[408208741,1773243038747,-500.0,9.263e-05,2]
[408208742,1773243038757,-51525.20816501,9.283e-05,2]
[408209030,1773243042836,-53118.79836912,9.283e-05,2]
[408209031,1773243043009,-1982.82238378,9.283e-05,2]
[408209041,1773243045680,-1542.89355435,9.283e-05,2]
[408209048,1773243603498,150.58,2e-05,2]
[408209049,1773243603874,150.58,2e-05,2]
[408209050,1773243604258,150.58,2e-05,2]
[408209051,1773243604650,150.58,2e-05,2]
[408209052,1773243605052,150.58,2e-05,2]
[408209053,1773243605496,150.58,2e-05,2]
[408209054,1773243605863,150.58,2e-05,2]
[408209055,1773243608627,150.58,2e-05,2]
[408209056,1773243608992,150.58,2e-05,2]
[408209057,1773243609367,150.58,2e-05,2]
[408209058,1773243609752,150.58,2.1e-05,2]
[408209059,1773243610321,150.58,2.1e-05,2]
[408209060,1773243610985,150.58,2.1e-05,2]
[408209061,1773243611371,150.58,2.1e-05,2]
[408209062,1773243611745,89.52,2.1e-05,2]
[408209064,1773243820208,5000.0,2.001e-05,2]
[408209065,1773243843165,5000.0,2.001e-05,2]
[408209066,1773243868052,5000.0,2.001e-05,2]
[408209067,1773243877357,5000.0,2.001e-05,2]
[408209068,1773243896210,5000.0,2.001e-05,2]
[408209069,1773243904398,1272.08232405,2.001e-05,2]
[408209070,1773243920568,5000.0,2.001e-05,2]
[408209071,1773243944416,5000.0,2.001e-05,2]
[408209072,1773243968983,5000.0,2.001e-05,2]
[408209073,1773243994828,5000.0,2.001e-05,2]
[408209075,1773244021875,5000.0,2.001e-05,2]
[408209076,1773244045638,5000.0,2.001e-05,2]
[408209077,1773244070445,3906.54261946,2.001e-05,2]
[408209079,1773244086735,3604.48137789,2.001e-05,2]
[408209107,1773244231853,-201.34990613,2.037e-05,2]
[408209108,1773244231863,-174.42487516,2.099e-05,2]
[408209118,1773244231973,-125.57512484,2.099e-05,2]
[408209120,1773244231985,-61.06,2.1e-05,2]
[408209122,1773244231996,-150.58,2.1e-05,2]
[408209124,1773244232005,-150.58,2.1e-05,2]
[408209126,1773244232016,-150.58,2.1e-05,2]
[408209128,1773244232026,-150.58,2.1e-05,2]
[408209130,1773244232036,-130.13890024,2.1e-05,2]
[408209132,1773244232050,-20.44109976,2.1e-05,2]
[408209134,1773244232060,-150.58,2.1e-05,2]
[408209135,1773244232070,-150.58,2.1e-05,2]
[408209136,1773244232080,-150.58,2.1e-05,2]
[408209137,1773244232090,-150.58,2.1e-05,2]
[408209138,1773244232100,-150.58,2.1e-05,2]
[408209139,1773244232109,-150.58,2.1e-05,2]
[408209140,1773244232118,-150.58,2.1e-05,2]
[408209141,1773244232127,-150.58,2.1e-05,2]
[408209142,1773244232136,-150.58,2.1e-05,2]
[408209143,1773244232145,-150.58,2.1e-05,2]
[408209144,1773244232154,-500.0,2.15e-05,2]
[408209145,1773244232164,-500.0,2.15e-05,2]
[408209146,1773244232174,-224.81229523,2.15e-05,2]
[408209147,1773244232183,-500.0,2.15e-05,2]
[408209148,1773244232193,-500.0,2.15e-05,2]
[408209149,1773244232202,-150.58,2.2e-05,2]
[408209150,1773244232212,-150.58,2.2e-05,2]
[408209151,1773244232221,-150.58,2.2e-05,2]
[408209152,1773244232231,-150.58,2.2e-05,2]
[408209153,1773244232240,-150.58,2.2e-05,2]
[408209154,1773244232250,-150.58,2.2e-05,2]
[408209155,1773244232260,-150.58,2.2e-05,2]
[408209156,1773244232270,-150.58,2.2e-05,2]
[408209158,1773244232279,-150.58,2.2e-05,2]
[408209160,1773244232289,-150.58,2.2e-05,2]
[408209162,1773244232301,-150.58,2.2e-05,2]
[408209164,1773244232311,-420.0,2.309e-05,2]
[408209166,1773244232320,-587.0,2.54e-05,2]
[408209168,1773244232330,-400.97868007,2.692e-05,2]
[408209170,1773244232339,-1000.0,2.698e-05,2]
[408209172,1773244232348,-1000.0,2.698e-05,2]
[408209174,1773244232358,-1000.0,2.698e-05,2]
[408209176,1773244232368,-1000.0,2.698e-05,2]